fUST/lending_fUST_20250622
["ID","MTS","AMOUNT","RATE_DAILY","PERIOD"]
[366887846,1750551052726,-846.23824438,0.00023277,3]
[366887847,1750551052737,-424.93363889,0.00023277,3]
[366887848,1750551052747,-213.55395994,0.00023277,3]
[366887849,1750551052756,-1968.94,0.00023277,3]
[366887850,1750551052766,-2069.28,0.00023277,3]
[366887851,1750551052775,-160.0,0.00023277,3]
[366887852,1750551052784,-1034.64,0.00023277,3]
[366887853,1750551052793,-517.32,0.00023277,3]
[366887854,1750551052802,-160.0,0.00023277,3]
[366887855,1750551052812,-160.0,0.00023277,3]
[366887856,1750551052821,-151.0,0.00023277,7]
[366887857,1750551052832,-160.0,0.00023286,2]
[366887858,1750551052844,-173.93769306,0.0002329,4]
[366887859,1750551052854,-173.93769306,0.0002329,4]
[366887860,1750551052863,-173.93769306,0.0002329,4]
[366887861,1750551052873,-173.93,0.0002329,4]
[366887862,1750551052882,-162.34184686,0.0002329,4]
[366887863,1750551052892,-162.34184686,0.0002329,4]
[366887864,1750551052902,-162.34184686,0.0002329,4]
[366887865,1750551052914,-162.34184686,0.0002329,4]
[366887866,1750551052923,-162.34184686,0.0002329,4]
[366887867,1750551052933,-162.34184686,0.0002329,4]
[366887868,1750551052943,-162.34184686,0.0002329,4]
[366887869,1750551052953,-250.0,0.000233,30]
[366887870,1750551052962,-669.34391016,0.000233,2]
[366887871,1750551052971,-162.34184686,0.00023422,4]
[366887872,1750551052981,-365.7551581,0.00023452,2]
[366887873,1750551052991,-365.7551581,0.00023452,2]
[366887874,1750551053001,-151.0,0.00023497,7]
[366887875,1750551053010,-151.0,0.00023499,7]
[366887876,1750551053020,-151.0,0.000235,6]
[366887877,1750551053029,-151.0,0.000235,6]
[366887878,1750551053038,-207.4,0.00023517,2]
[366887879,1750551053048,-300.0,0.00023517,2]
[366887880,1750551053058,-800.0,0.00023517,2]
[366887881,1750551053068,-300.0,0.00023517,2]
[366887882,1750551053078,-800.0,0.00023517,2]
[366887883,1750551053087,-300.0,0.00023517,2]
[366887884,1750551053098,-800.0,0.00023517,2]
[366887885,1750551053108,-300.0,0.00023517,2]
[366887886,1750551053118,-300.0,0.00023517,2]
[366887887,1750551053127,-800.0,0.00023517,2]
[366887888,1750551053137,-300.0,0.00023517,2]
[366887889,1750551053146,-800.0,0.00023517,2]
[366887890,1750551053156,-300.0,0.00023517,2]
[366887891,1750551053165,-800.0,0.00023517,2]
[366887892,1750551053175,-300.0,0.00023517,2]
[366887893,1750551053184,-800.0,0.00023517,2]
[366887894,1750551053194,-300.0,0.00023517,2]
[366887895,1750551053203,-800.0,0.00023517,2]
[366887896,1750551053213,-300.0,0.00023517,2]
[366887897,1750551053222,-800.0,0.00023517,2]
[366887898,1750551053232,-300.0,0.00023517,2]
[366887899,1750551053242,-800.0,0.00023517,2]
[366887900,1750551053252,-300.0,0.00023517,2]
[366887901,1750551053261,-800.0,0.00023517,2]
[366887902,1750551053271,-300.0,0.00023517,2]
[366887903,1750551053281,-800.0,0.00023517,2]
[366887904,1750551053290,-300.0,0.00023517,2]
[366887905,1750551053300,-800.0,0.00023517,2]
[366887906,1750551053310,-300.0,0.00023517,2]
[366887907,1750551053319,-800.0,0.00023517,2]
[366887908,1750551053328,-800.0,0.00023517,2]
[366887909,1750551053338,-25000.0,0.00023517,2]
[366887910,1750551053349,-976.71100501,0.00023517,2]
[366887911,1750551053359,-1200.0,0.00023521,2]
[366887912,1750551053368,-1000.0,0.00023521,2]
[366887913,1750551053377,-1000.0,0.00023521,2]
[366887914,1750551053387,-1000.0,0.00023521,2]
[366887915,1750551053396,-1000.0,0.00023521,2]
[366887916,1750551053406,-404.11447181,0.00023521,2]
[366887917,1750551053415,-596.58,0.00023554,2]
[366887918,1750551053425,-173.5538245,0.00023554,2]
[366887919,1750551053434,-460.0,0.00023554,2]
[366887920,1750551053443,-500.0,0.0002356,10]
[366887921,1750551053452,-200.0,0.00023561,2]
[366887922,1750551053462,-200.0,0.00023561,2]
[366887923,1750551053471,-200.0,0.00023561,2]
[366887924,1750551053481,-200.0,0.00023561,2]
[366887925,1750551053491,-153.92699977,0.00023561,2]
[366887926,1750551053500,-1723.0,0.00023581,7]
[366887927,1750551053511,-3000.0,0.000236,2]
[366887928,1750551053520,-596.58,0.00023609,2]
[366887929,1750551053530,-596.58,0.00023609,2]
[366887930,1750551053539,-596.58,0.00023609,2]
[366887931,1750551053548,-596.58,0.00023609,2]
[366887932,1750551053558,-596.62515028,0.00023609,2]
[366887933,1750551053640,-460.0,0.00023609,2]
[366887934,1750551053650,-151.0,0.00023609,7]
[366887935,1750551053659,-153.585354,0.00023609,7]
[366887936,1750551053669,-151.0,0.00023609,7]
[366887937,1750551053679,-151.0,0.00023609,7]
[366887938,1750551053689,-1751.36,0.00023609,2]
[366887939,1750551053699,-460.0,0.00023609,2]
[366887940,1750551053708,-460.0,0.00023609,2]
[366887941,1750551053718,-460.0,0.00023609,2]
[366887942,1750551053728,-460.0,0.00023609,2]
[366887943,1750551053738,-519.94,0.00023609,2]
[366887944,1750551053747,-460.0,0.00023609,2]
[366887945,1750551053757,-461.18,0.00023609,2]
[366887946,1750551053767,-3000.0,0.0002361,2]
[366887947,1750551053777,-1536.18301861,0.00023616,2]
[366887948,1750551053786,-3000.0,0.0002362,2]
[366887949,1750551053796,-151.0,0.0002362,7]
[366887950,1750551053805,-151.0,0.0002362,7]
[366887951,1750551053815,-187.493283,0.0002362,7]
[366887952,1750551053824,-187.493283,0.0002362,7]
[366887953,1750551053833,-242.315249,0.0002362,7]
[366887954,1750551053844,-242.315249,0.0002362,7]
[366887955,1750551053853,-3000.0,0.0002363,2]
[366887956,1750551053863,-3000.0,0.0002364,2]
[366887957,1750551053872,-3000.0,0.0002365,2]
[366887958,1750551053881,-3000.0,0.0002366,2]
[366887959,1750551053891,-162.34184686,0.00023661,4]
[366887960,1750551053900,-191.23417805,0.00023669,2]
[366887961,1750551053912,-1751.36,0.00023669,2]
[366887962,1750551053921,-460.0,0.00023669,2]
[366887963,1750551053930,-460.0,0.00023669,2]
[366887964,1750551053940,-460.0,0.00023669,2]
[366887965,1750551053951,-461.18,0.00023669,2]
[366887966,1750551053960,-3000.0,0.0002367,2]
[366887967,1750551053970,-500.0,0.00023673,2]
[366887968,1750551053980,-500.0,0.00023673,2]
[366887969,1750551053990,-500.0,0.00023673,2]
[366887970,1750551054000,-500.0,0.00023673,2]
[366887971,1750551054009,-500.0,0.00023673,2]
[366887972,1750551054019,-500.0,0.00023673,2]
[366887973,1750551054028,-3000.0,0.0002368,2]
[366887974,1750551054038,-3000.0,0.0002369,2]
[366887975,1750551054047,-52529.93229967,0.00023697,2]
[366887976,1750551054057,-151.0,0.00023697,7]
[366887977,1750551054066,-151.596155,0.00023697,7]
[366887978,1750551054076,-151.0,0.00023697,7]
[366887979,1750551054086,-3000.0,0.000237,2]
[366887980,1750551054097,-151.0,0.000237,8]
[366887981,1750551054107,-151.0,0.000237,6]
[366887982,1750551054118,-1751.36,0.00023709,2]
[366887983,1750551054127,-1751.36,0.00023709,2]
[366887984,1750551054137,-1751.36,0.00023709,2]
[366887985,1750551054147,-460.0,0.00023709,2]
[366887986,1750551054157,-460.0,0.00023709,2]
[366887987,1750551054166,-460.0,0.00023709,2]
[366887988,1750551054175,-460.0,0.00023709,2]
[366887989,1750551054185,-460.0,0.00023709,2]
[366887990,1750551054194,-460.0,0.00023709,2]
[366887991,1750551054203,-460.0,0.00023709,2]
[366887992,1750551054214,-460.0,0.00023709,2]
[366887993,1750551054223,-460.0,0.00023709,2]
[366887994,1750551054232,-420.0,0.00023709,2]
[366887995,1750551054242,-461.18,0.00023709,2]
[366887996,1750551054251,-461.18,0.00023709,2]
[366887997,1750551054261,-461.18,0.00023709,2]
[366887998,1750551054270,-8146.04224131,0.0002371,2]
[366887999,1750551054279,-24722.88874619,0.0002371,2]
[366888000,1750551054289,-44482.19322045,0.0002371,2]
[366888001,1750551054431,-13275.2524932,0.0002371,2]
[366888002,1750551054441,-3000.0,0.0002371,2]
[366888003,1750551054450,-151.0,0.0002371,7]
[366888004,1750551054460,-151.000002,0.0002371,7]
[366888005,1750551054470,-151.0,0.0002371,7]
[366888006,1750551054479,-205.973161,0.0002371,7]
[366888007,1750551054489,-205.973161,0.0002371,7]
[366888008,1750551054498,-151.0,0.0002371,7]
[366888009,1750551054508,-420.0,0.0002371,2]
[366888010,1750551054517,-182.788416,0.0002371,7]
[366888011,1750551054527,-151.0,0.0002371,7]
[366888012,1750551054537,-187.493283,0.0002371,7]
[366888013,1750551054547,-187.493283,0.0002371,7]
[366888014,1750551054556,-242.315249,0.0002371,7]
[366888015,1750551054566,-242.315249,0.0002371,7]
[366888016,1750551054575,-3000.0,0.0002372,2]
[366888017,1750551054584,-177.2671816,0.00023726,2]
[366888018,1750551054596,-159.0806219,0.00023726,2]
[366888019,1750551054605,-153.0,0.00023726,2]
[366888020,1750551054615,-309.7233395,0.00023726,2]
[366888021,1750551054624,-574.5372799,0.00023726,2]
[366888022,1750551054633,-159.0806219,0.00023726,2]
[366888023,1750551054642,-574.5372799,0.00023726,2]
[366888024,1750551054651,-177.2671816,0.00023726,2]
[366888025,1750551054660,-153.0,0.00023726,2]
[366888026,1750551054670,-159.0806219,0.00023726,2]
[366888027,1750551054679,-574.5372799,0.00023726,2]
[366888028,1750551054689,-177.2671816,0.00023726,2]
[366888029,1750551054698,-159.0806219,0.00023726,2]
[366888030,1750551054708,-177.2671816,0.00023726,2]
[366888031,1750551054717,-574.5372799,0.00023726,2]
[366888032,1750551054727,-153.0,0.00023726,2]
[366888033,1750551054736,-175.3071048,0.00023726,2]
[366888034,1750551054745,-574.5372799,0.00023726,2]
[366888035,1750551054756,-572.4282159,0.00023726,2]
[366888036,1750551054765,-153.0,0.00023726,2]
[366888037,1750551054774,-153.0,0.00023726,2]
[366888038,1750551054783,-153.0,0.00023726,2]
[366888039,1750551054793,-153.0,0.00023726,2]
[366888040,1750551054802,-153.0,0.00023726,2]
[366888041,1750551054811,-153.0,0.00023726,2]
[366888042,1750551054820,-153.0,0.00023726,2]
[366888043,1750551054829,-1751.36,0.00023729,2]
[366888044,1750551054839,-460.0,0.00023729,2]
[366888045,1750551054850,-460.0,0.00023729,2]
[366888046,1750551054860,-460.0,0.00023729,2]
[366888047,1750551054869,-461.18,0.00023729,2]
[366888048,1750551054879,-3000.0,0.0002373,2]
[366888049,1750551054889,-3000.0,0.0002374,2]
[366888050,1750551054898,-3000.0,0.0002375,2]
[366888051,1750551054910,-3000.0,0.0002376,2]
[366888052,1750551054920,-1723.0,0.00023765,2]
[366888053,1750551054930,-3000.0,0.0002377,2]
[366888054,1750551055014,-212.79722987,0.00023773,2]
[366888055,1750551055025,-500.0,0.00023773,2]
[366888056,1750551055035,-500.0,0.00023773,2]
[366888057,1750551055045,-500.0,0.00023773,2]
[366888058,1750551055055,-500.0,0.00023773,2]
[366888059,1750551055065,-500.0,0.00023773,2]
[366888060,1750551055076,-500.0,0.00023773,2]
[366888061,1750551055087,-500.0,0.00023773,2]
[366888062,1750551055106,-500.0,0.00023773,2]
[366888063,1750551055116,-506.87102913,0.00023773,2]
[366888064,1750551055126,-500.0,0.00023773,2]
[366888065,1750551055135,-500.0,0.00023773,2]
[366888066,1750551055145,-500.0,0.00023773,2]
[366888067,1750551055155,-501.01766854,0.00023773,2]
[366888068,1750551055165,-500.0,0.00023773,2]
[366888069,1750551055176,-500.0,0.00023773,2]
[366888070,1750551055187,-500.0,0.00023773,2]
[366888071,1750551055198,-167.19677086,0.00023773,2]
[366888072,1750551055208,-500.38764386,0.00023773,2]
[366888073,1750551055219,-351.41240846,0.00023773,2]
[366888074,1750551055231,-500.0,0.00023773,2]
[366888075,1750551055242,-150.91223692,0.00023773,2]
[366888076,1750551055252,-500.0,0.00023773,2]
[366888077,1750551055262,-441.22774082,0.00023773,2]
[366888078,1750551055273,-500.0,0.00023773,2]
[366888079,1750551055283,-381.15923323,0.00023773,2]
[366888080,1750551055293,-516.82066677,0.00023773,2]
[366888081,1750551055303,-503.41899336,0.00023773,2]
[366888082,1750551055313,-500.0,0.00023773,2]
[366888083,1750551055323,-3329.144436,0.0002378,2]
[366888084,1750551055333,-669.34391016,0.00023796,2]
[366888085,1750551055349,-1751.36,0.00023797,2]
[366888086,1750551055360,-460.0,0.00023797,2]
[366888087,1750551055369,-460.0,0.00023797,2]
[366888088,1750551055379,-460.0,0.00023797,2]
[366888089,1750551055389,-461.18,0.00023797,2]
[366888090,1750551055399,-151.0,0.000238,7]
[366888091,1750551055409,-151.0,0.00023831,7]
[366888092,1750551055418,-369.3,0.00023839,6]
[366888093,1750551055428,-159.007092,0.00023876,4]
[366888094,1750551055438,-500.0,0.000239,2]
[366888095,1750551055448,-162.34,0.000239,4]
[366888096,1750551055458,-151.0,0.00023943,7]
[366888097,1750551055468,-154.958396,0.00023948,7]
[366888098,1750551055477,-154.958396,0.00023948,7]
[366888099,1750551055487,-1751.36,0.00023971,2]
[366888100,1750551055496,-460.0,0.00023971,2]
[366888101,1750551055506,-460.0,0.00023971,2]
[366888102,1750551055515,-460.0,0.00023971,2]
[366888103,1750551055524,-461.18,0.00023971,2]
[366888104,1750551055535,-500.0,0.00023973,2]
[366888105,1750551055544,-306.44327468,0.00023973,2]
[366888106,1750551055553,-503.20309577,0.00023973,2]
[366888107,1750551055563,-500.0,0.00023973,2]
[366888108,1750551055572,-151.0,0.00023973,7]
[366888109,1750551055582,-500.0,0.0002399,2]
[366888110,1750551055594,-369.3,0.00023992,6]
[366888111,1750551055606,-160.0,0.00024,7]
[366888112,1750551055615,-151.0,0.00024,7]
[366888113,1750551055625,-30143.0,0.00024,2]
[366888114,1750551055634,-151.0,0.00024,5]
[366888115,1750551055644,-151.0,0.00024,7]
[366888116,1750551055653,-151.0,0.00024,7]
[366888117,1750551055662,-151.0,0.00024,7]
[366888118,1750551055672,-205.973161,0.00024,7]
[366888119,1750551055681,-205.973161,0.00024,7]
[366888120,1750551055691,-79076.21,0.00024,2]
[366888121,1750551055701,-1601.29,0.00024,7]
[366888122,1750551055711,-151.0,0.00024,7]
[366888123,1750551055720,-5553.67,0.00024,7]
[366888124,1750551055729,-12549.17366507,0.00024,10]
[366888125,1750551055738,-160.0,0.00024,7]
[366888126,1750551055748,-278.5872,0.00024,7]
[366888127,1750551055757,-836.41202323,0.00024,7]
[366888128,1750551055766,-836.41202323,0.00024,10]
[366888129,1750551055776,-230.10342898,0.00024,7]
[366888130,1750551055786,-230.10342898,0.00024,10]
[366888131,1750551055795,-187.493283,0.00024,7]
[366888132,1750551055805,-187.493283,0.00024,7]
[366888133,1750551055814,-242.315249,0.00024,7]
[366888134,1750551055823,-242.315249,0.00024,7]
[366888135,1750551055832,-523.9660634,0.00024,10]
[366888136,1750551055842,-154.363452,0.00024,7]
[366888137,1750551055854,-24998.47872624,0.00024,7]
[366888138,1750551055864,-160.0,0.00024,7]
[366888139,1750551055873,-424.93363889,0.00024,7]
[366888140,1750551055882,-424.93363889,0.00024,10]
[366888141,1750551055892,-1214.83372144,0.00024065,2]
[366888142,1750551055945,-460.0,0.00021917,2]
[366888143,1750551055955,-541.5183753,0.00021917,2]
[366888144,1750551055965,-460.0,0.00021917,2]
[366888145,1750551055974,-332.22540504,0.00021917,2]
[366888146,1750551055983,-2196.25621966,0.00024065,2]
[366888147,1750551056269,-4457.57843426,0.000219,6]
[366888148,1750551056279,-460.0,0.00021917,2]
[366888149,1750551056288,-423.10059052,0.00021917,2]
[366888150,1750551056297,-460.0,0.00021917,2]
[366888151,1750551056306,-460.0,0.00021917,2]
[366888152,1750551056385,-460.0,0.00021917,2]
[366888153,1750551056395,-460.0,0.00021917,2]
[366888154,1750551056405,-556.55,0.00021917,2]
[366888155,1750551056415,-460.0,0.00021917,2]
[366888156,1750551056425,-460.0,0.00021917,2]
[366888157,1750551056434,-460.0,0.00021917,2]
[366888158,1750551056443,-460.0,0.00021917,2]
[366888159,1750551056453,-190.33998787,0.00021917,2]
[366888160,1750551056463,-4457.57843418,0.00022038,6]
[366888161,1750551056472,-4457.57843418,0.00022176,6]
[366888162,1750551056481,-4457.57843418,0.00022314,7]
[366888163,1750551056490,-4457.57843418,0.00022452,7]
[366888164,1750551056499,-4457.57843418,0.0002259,7]
[366888165,1750551056508,-4457.57843418,0.00022728,7]
[366888166,1750551056518,-4457.57843418,0.00022866,8]
[366888167,1750551056528,-21588.9100589,0.00024065,2]
[366888168,1750551056538,-1800.0,0.00024068,2]
[366888169,1750551056547,-1500.0,0.00024068,2]
[366888170,1750551056557,-1500.0,0.00024068,2]
[366888171,1750551056567,-1000.0,0.00024068,2]
[366888172,1750551056577,-151.0,0.00024076,7]
[366888173,1750551056587,-154.958396,0.000241,7]
[366888174,1750551056599,-154.958396,0.000241,7]
[366888175,1750551056609,-500.0,0.00024108,11]
[366888176,1750551056618,-460.0,0.00024109,2]
[366888177,1750551056628,-369.3,0.00024145,6]
[366888178,1750551056638,-172.0,0.00024164,7]
[366888179,1750551056647,-151.0,0.00024174,7]
[366888180,1750551056657,-151.0,0.00024174,7]
[366888181,1750551056667,-1751.36,0.00024199,2]
[366888182,1750551056676,-1751.36,0.00024199,2]
[366888183,1750551056686,-1751.36,0.00024199,2]
[366888184,1750551056695,-1751.36,0.00024199,2]
[366888185,1750551056705,-1751.38,0.00024199,2]
[366888186,1750551056714,-460.0,0.00024199,2]
[366888187,1750551056723,-460.0,0.00024199,2]
[366888188,1750551056732,-460.0,0.00024199,2]
[366888189,1750551056741,-397.06962487,0.00024199,2]
[366888190,1750551056750,-460.0,0.00024199,2]
[366888191,1750551056762,-460.0,0.00024199,2]
[366888192,1750551056771,-554.17,0.00024199,2]
[366888193,1750551056780,-460.0,0.00024199,2]
[366888194,1750551056789,-460.0,0.00024199,2]
[366888195,1750551056799,-460.0,0.00024199,2]
[366888196,1750551056808,-526.78,0.00024199,2]
[366888197,1750551056818,-461.18,0.00024199,2]
[366888198,1750551056827,-461.18,0.00024199,2]
[366888199,1750551056836,-461.18,0.00024199,2]
[366888200,1750551056849,-461.18,0.00024199,2]
[366888201,1750551056859,-461.22,0.00024199,2]
[366888202,1750551056868,-9919.50684417,0.000242,10]
[366888203,1750551056878,-160.0,0.000242,10]
[366888204,1750551056888,-500.0,0.00024221,2]
[366888205,1750551056897,-1000.0,0.00024221,2]
[366888206,1750551056907,-500.0,0.00024221,2]
[366888207,1750551056921,-500.0,0.00024221,2]
[366888208,1750551056931,-500.0,0.00024221,2]
[366888209,1750551056942,-1000.0,0.00024221,2]
[366888210,1750551056952,-151.0,0.00024258,7]
[366888211,1750551056962,-151.0,0.00024258,7]
[366888212,1750551056971,-151.0,0.00024258,7]
[366888213,1750551056981,-669.34391016,0.00024291,2]
[366888214,1750551056990,-369.3,0.00024298,7]
[366888215,1750551057000,-151.0,0.000243,9]
[366888216,1750551057010,-151.0,0.000243,8]
[366888217,1750551057021,-151.0,0.000243,10]
[366888218,1750551057030,-151.0,0.000243,6]
[366888219,1750551057040,-500.0,0.00024321,2]
[366888220,1750551057050,-1000.0,0.00024321,2]
[366888221,1750551057059,-500.0,0.00024321,2]
[366888222,1750551057068,-501.97608195,0.00024321,2]
[366888223,1750551057078,-503.37230673,0.00024321,2]
[366888224,1750551057087,-1000.0,0.00024321,2]
[366888225,1750551057098,-539.71171856,0.00024321,2]
[366888226,1750551057107,-1000.0,0.00024321,2]
[366888227,1750551057117,-1114.9084298,0.00024321,2]
[366888228,1750551057126,-500.0,0.0002434,2]
[366888229,1750551057136,-500.0,0.0002434,2]
[366888230,1750551057145,-500.0,0.0002434,2]
[366888231,1750551057155,-600.0,0.00024355,2]
[366888232,1750551057164,-159.007092,0.00024402,2]
[366888233,1750551057173,-1002.37827813,0.00024448,2]
[366888234,1750551057183,-151.0,0.00024448,7]
[366888235,1750551057193,-544.531843,0.00024448,7]
[366888236,1750551057202,-544.531843,0.00024448,7]
[366888237,1750551057212,-369.3,0.00024452,7]
[366888238,1750551057221,-231.11379562,0.00024487,2]
[366888239,1750551057231,-151.0,0.00024488,7]
[366888240,1750551057240,-206.440224,0.00024488,7]
[366888241,1750551057250,-151.563322,0.00024488,7]
[366888242,1750551057260,-151.0,0.00024488,7]
[366888243,1750551057269,-151.0,0.00024488,7]
[366888244,1750551057279,-151.0,0.00024488,7]
[366888245,1750551057288,-154.958396,0.00024488,7]
[366888246,1750551057298,-154.958396,0.00024488,7]
[366888247,1750551057307,-151.0,0.00024488,7]
[366888248,1750551057317,-153.148426,0.00024488,7]
[366888249,1750551057326,-1161.289282,0.0002449,4]
[366888250,1750551057336,-503.34321714,0.00024521,2]
[366888251,1750551057347,-170.994856,0.00024548,7]
[366888252,1750551057356,-170.994856,0.00024548,7]
[366888253,1750551057366,-151.0,0.00024548,7]
[366888254,1750551057375,-151.0,0.00024548,7]
[366888255,1750551057384,-151.0,0.00024548,7]
[366888256,1750551057393,-800.0,0.00024549,2]
[366888257,1750551057402,-808.052322,0.00024552,7]
[366888258,1750551057412,-808.052322,0.00024552,7]
[366888259,1750551057421,-2161.0,0.00024575,2]
[366888260,1750551057432,-654.0,0.00024575,2]
[366888261,1750551057443,-4922.47027724,0.0002458,2]
[366888262,1750551057452,-1393.0,0.00024586,7]
[366888263,1750551057461,-151.0,0.00024598,7]
[366888264,1750551057471,-288.648881,0.00024598,7]
[366888265,1750551057481,-288.648881,0.00024598,7]
[366888266,1750551057490,-151.0,0.000246,6]
[366888267,1750551057499,-151.0,0.000246,9]
[366888268,1750551057508,-151.0,0.000246,8]
[366888269,1750551057518,-369.3,0.00024605,7]
[366888270,1750551057527,-600.0,0.00024609,2]
[366888271,1750551057536,-2400.0,0.00024616,2]
[366888272,1750551057546,-2000.0,0.00024616,2]
[366888273,1750551057557,-2000.0,0.00024616,2]
[366888274,1750551057567,-155.0,0.0002464,2]
[366888275,1750551057638,-38197.01118609,0.00024651,2]
[366888276,1750551057670,-550.47,0.00021917,2]
[366888277,1750551057680,-4457.57843418,0.00023003,8]
[366888278,1750551057689,-4457.57843418,0.00023141,8]
[366888279,1750551057699,-4457.57843418,0.00023279,8]
[366888280,1750551057708,-6741.9351427,0.00024651,2]
[366888281,1750551057717,-151.0,0.00024651,7]
[366888282,1750551057726,-205.973161,0.00024651,7]
[366888283,1750551057735,-205.973161,0.00024651,7]
[366888284,1750551057744,-151.0,0.00024651,7]
[366888285,1750551057755,-187.493283,0.00024651,7]
[366888286,1750551057766,-187.493283,0.00024651,7]
[366888287,1750551057776,-242.315249,0.00024651,7]
[366888288,1750551057785,-242.315249,0.00024651,7]
[366888289,1750551057795,-160.0,0.00024656,2]
[366888290,1750551057804,-500.0,0.00024656,12]
[366888291,1750551057813,-1000.0,0.00024658,2]
[366888292,1750551057822,-751.01735876,0.00024658,2]
[366888294,1750551091708,200.0,0.00024317,120]
[366888295,1750551166439,220.82757921,0.000222,69]
[366888427,1750551657266,220.82757921,0.000222,69]
[366888438,1750551864292,6400.0,0.00019102,2]
[366888445,1750551939141,-166.239334,0.00020744,2]
[366888446,1750551939166,-451.86,0.00020908,2]
[366888447,1750551939187,-195.0856988,0.00020909,2]
[366888448,1750551939212,-168.0,0.00021223,2]
[366888449,1750551939234,-168.0,0.00021293,2]
[366888450,1750551939257,-168.0,0.00021325,2]
[366888451,1750551939279,-168.0,0.00021585,2]
[366888452,1750551939302,-687.2890065,0.00021589,2]
[366888453,1750551939325,-168.0,0.00021601,2]
[366888454,1750551939348,-168.0,0.0002172,2]
[366888455,1750551939370,-168.0,0.00021766,2]
[366888456,1750551939391,-160.0,0.00021807,2]
[366888457,1750551939412,-300.0,0.00021893,2]
[366888458,1750551939433,-300.0,0.00021893,2]
[366888459,1750551939457,-500.0,0.00021894,2]
[366888460,1750551939479,-500.0,0.00021894,2]
[366888461,1750551939501,-500.0,0.00021894,2]
[366888462,1750551939522,-233.86000249,0.00021894,2]
[366888463,1750551939543,-453.10103406,0.00021894,2]
[366888464,1750551939566,-500.0,0.00021894,2]
[366888465,1750551939586,-500.0,0.00021894,2]
[366888466,1750551939608,-500.0,0.00021894,2]
[366888467,1750551939628,-500.0,0.00021894,2]
[366888468,1750551939650,-500.0,0.00021894,2]
[366888469,1750551939672,-500.0,0.00021894,2]
[366888470,1750551939692,-500.0,0.00021894,2]
[366888471,1750551939712,-276.25924999,0.00021894,2]
[366888472,1750551939732,-581.43492077,0.00021894,2]
[366888473,1750551939754,-500.0,0.00021894,2]
[366888474,1750551939774,-500.0,0.00021894,2]
[366888475,1750551939795,-423.56454981,0.00021894,2]
[366888476,1750551939818,-444.39213784,0.00021894,2]
[366888477,1750551939840,-446.46973032,0.00021894,2]
[366888478,1750551939861,-463.93302425,0.00021894,2]
[366888479,1750551939883,-500.0,0.00021894,2]
[366888480,1750551939904,-300.0,0.00021895,2]
[366888481,1750551939924,-376.16036758,0.00021895,2]
[366888482,1750551939944,-12366.69722294,0.000219,2]
[366888483,1750551939975,-2823.13300843,0.000219,6]
[366888484,1750551939997,-168.0,0.00021902,2]
[366888485,1750551940019,-978.64,0.00021907,3]
[366888486,1750551940040,-489.32,0.00021907,3]
[366888487,1750551940062,-917.7,0.00021907,3]
[366888488,1750551940083,-458.85,0.00021907,3]
[366888489,1750551940105,-229.42,0.00021907,3]
[366888490,1750551940128,-688.31,0.00021907,3]
[366888491,1750551940151,-225.97,0.00021907,10]
[366888492,1750551940175,-526.88492925,0.00021916,2]
[366888493,1750551940201,-500.0,0.00021916,2]